Workbook

Sheet Disclaimer

Sheet Instructions
A1: Power Budget Instructions

Sheet Configuration
A1: Thermal Config Matrix | R1: =Summary!D15 ->  | S1: <-- Margin to PS rating
A2: Notes: 1. The 25°C configuration alone is limited to elevations of 900m or less 2. Use of the designated PCI slot is limited to add-in cards that have air flow requirements of 100 LFM or less. See add-in card specs for air flow requirements. 3. Base system SKUs R2312GZ/GL and R2224GZ/GL, configured with the following IO modules: AXX10GBTWLIOM, AXX2FDRIBIOM and AXX1FDRIBIOM, can only be supported with DRx8 memory. 4. 130W-4 Core and 135W-8 Core processors may experience throttling, impacting system performance. 5. Processor throttling may occur with a system fan failure which may impact system performance. 6. Specifically for A3/A4 individual Power Supply selection power margin is required to meet thermal specifications: a) For dual power supply configuration, power budget must fit within single power supply rated load and be installed in dual configuration, or b) For single power supply configuration, power budget must be sized with 30% margin to single power supply rated load. 7. GPGPU cards may have performance impact during ambient excursions 8. When identifying memory in the table, only Rank and Width are required. Capacity is not required. 9. LV refers to low voltage DIMMs (1.35V) 10. Cache offload Module can only be installed with 95W processor and DRx8 or equivalent memory for HTA A3/A4 with R2312GZ/GL and R2224GZ/GL System. Requires an optional RMFBU2 bracket on 2U systems. 11. Confirm the case temperature specification for the SSD to make appropriate selection 12. Fan fail of dual-rotor fans refers to one rotor fail. "Fan Fail Support" indicates if fan fail can be supported with specified configuration in each column. 13. System must have contents from the Intel accessory kit AGZCOPRODUCT installed to support Intel® Xeon Phi™ or non-Intel GPGPU add-in cards with passive cooling solutions. Only systems configured with S2600GZ (24-DIMM) server board will be supported. 14. Fan redundancy is not supported in systems configured with 130W-4 Core and 135W-8 Core processors 15. Due to thermal specification availability restrictions, Intel has NOT verified the thermal compatibility of non-Intel GPGPU cards that utilize a passive cooling solution in its server systems. System integrators should verify non-Intel add-in card air flow requirements from available vendor specifications before integrating them into the system. | C2: Base System SKUs: R1304GZ/GL R1208GZ/GL | F2: Base System SKUs: R2312GZ/GL | J2: Base System SKUs: R2224GZ/GL | N2: Base System SKUs: R2216GZ/GL | R2: Base System SKUs: R2308GZ/GL | V2: Base System SKUs: R2208GZ/GL
A3: ASHRAE (See note 1) | B3: Classifications | C3: A2 | D3: A3 | E3: A4 | F3: 25C | G3: A2 | H3: A3 | I3: A4 | J3: 25C | K3: A2 | L3: A3 | M3: A4 | N3: 25C | O3: A2 | P3: A3 | Q3: A4 | R3: 25C | S3: A2 | T3: A3 | U3: A4 | V3: 25C | W3: A2 | X3: A2 | Y3: A3 | Z3: A4 | AA3: <-- see note 1
B4: Max Ambient | C4: 35°C | D4: 40°C | E4: 45°C | F4: 25°C | G4: 35°C | H4: 40°C | I4: 45°C | J4: 25°C | K4: 35°C | L4: 40°C | M4: 45°C | N4: 25°C | O4: 35°C | P4: 40°C | Q4: 45°C | R4: 25°C | S4: 35°C | T4: 40°C | U4: 45°C | V4: 25°C | W4: 35°C | X4: 35°C | Y4: 40°C | Z4: 45°C
A5: Cooling | B5: Redundant Fan Configuration | C5: ● | D5: ● | E5: ● | F5: ● | G5: ● | H5: ● | I5: ● | J5: ● | K5: ● | L5: ● | M5: ● | N5: ● | O5: ● | P5: ● | Q5: ● | R5: ● | S5: ● | T5: ● | U5: ● | V5: ● | W5: ● | X5: ● | Y5: ● | Z5: ●
B6: Redundancy Available | C6: ● | F6: ● | G6: ● | J6: ● | K6: ● | N6: ● | O6: ● | R6: ● | S6: ● | V6: ● | X6: ●
A7: PS (See note 6) | B7: Power Supplies | C7: See Tool | F7: See Tool | J7: See Tool | N7: See Tool | R7: See Tool | V7: See Tool | AA7: <-- see note 6
A8: EP Processors ( See Notes 4,5) | B8: EP, 60w, 6C (Intel® Xeon® processor E5-2630L) | C8: ● | D8: ● | F8: ● | G8: ● | J8: ● | K8: ● | N8: ● | O8: ● | P8: ● | Q8: ● | R8: ● | S8: ● | T8: ● | U8: ● | V8: ● | W8: ● | X8: ● | Y8: ● | Z8: ● | AA8: <-- see note 5
B9: EP, 70w, 8C (Intel® Xeon® processor E5-2650L) | C9: ● | D9: ● | E9: ● | F9: ● | G9: ● | H9: ● | J9: ● | K9: ● | L9: ● | N9: ● | O9: ● | P9: ● | Q9: ● | R9: ● | S9: ● | T9: ● | U9: ● | V9: ● | W9: ● | X9: ● | Y9: ● | Z9: ● | AA9: <-- see note 5
B10: EP, 95w, 6C (Intel® Xeon®processor E5-2620 , E5-2630, E5-2640) | C10: ● | D10: ● | E10: ● | F10: ● | G10: ● | H10: ● | I10: ● | J10: ● | K10: ● | L10: ● | M10: ● | N10: ● | O10: ● | P10: ● | Q10: ● | R10: ● | S10: ● | T10: ● | U10: ● | V10: ● | W10: ● | X10: ● | Y10: ● | Z10: ● | AA10: <-- see note 5
B11: EP, 95w, 8C (Intel® Xeon®processor E5-2650, E5-2660) | C11: ● | D11: ● | E11: ● | F11: ● | G11: ● | H11: ● | I11: ● | J11: ● | K11: ● | L11: ● | M11: ● | N11: ● | O11: ● | P11: ● | Q11: ● | R11: ● | S11: ● | T11: ● | U11: ● | V11: ● | W11: ● | X11: ● | Y11: ● | Z11: ● | AA11: <-- see note 5
B12: EP, 115w, 8C (Intel® Xeon®processor E5-2665, E5-2670) | C12: ● | D12: ● | F12: ● | G12: ● | H12: ● | J12: ● | K12: ● | L12: ● | N12: ● | O12: ● | P12: ● | Q12: ● | R12: ● | S12: ● | T12: ● | U12: ● | V12: ● | W12: ● | X12: ● | Y12: ● | Z12: ● | AA12: <-- see note 5
B13: EP, 130w, 6C (Intel® Xeon® processor E5-2667) | C13: ● | D13: ● | F13: ● | G13: ● | J13: ● | K13: ● | N13: ● | O13: ● | P13: ● | R13: ● | S13: ● | T13: ● | V13: ● | W13: ● | X13: ● | Y13: ● | AA13: <-- see note 5
B14: EP, 130w, 8C (Intel® Xeon® processor E5-2680) | C14: ● | D14: ● | F14: ● | G14: ● | J14: ● | K14: ● | N14: ● | O14: ● | P14: ● | R14: ● | S14: ● | T14: ● | V14: ● | W14: ● | X14: ● | Y14: ● | AA14: <-- see note 5
B15: EP, 135w, 8C (Intel® Xeon® processor E5-2690) | C15: ● | F15: ● | J15: ● | K15: ● | N15: ● | O15: ● | R15: ● | S15: ● | V15: ● | W15: ● | X15: ● | AA15: <-- see notes 4 and 5
B16: EP, 80w, 2C (Intel® Xeon® processor E5-2637) | C16: ● | D16: ● | E16: ● | F16: ● | G16: ● | H16: ● | I16: ● | J16: ● | K16: ● | L16: ● | M16: ● | N16: ● | O16: ● | P16: ● | Q16: ● | R16: ● | S16: ● | T16: ● | U16: ● | V16: ● | W16: ● | X16: ● | Y16: ● | Z16: ● | AA16: <-- see note 5
B17: EP, 80w, 4C (Intel® Xeon® processor E5-2603, E5-2609) | C17: ● | D17: ● | E17: ● | F17: ● | G17: ● | H17: ● | I17: ● | J17: ● | K17: ● | L17: ● | M17: ● | N17: ● | O17: ● | P17: ● | Q17: ● | R17: ● | S17: ● | T17: ● | U17: ● | V17: ● | W17: ● | X17: ● | Y17: ● | Z17: ● | AA17: <-- see note 5
B18: EP, 130w, 4C (Intel® Xeon® processor E5-2643) | C18: ● | F18: ● | J18: ● | K18: ● | N18: ● | O18: ● | R18: ● | S18: ● | V18: ● | W18: ● | X18: ● | AA18: <-- see notes 4 and 5
A19: Intel® Xeon® processor E5-2600 v2 product family | B19: EP, 60W, 6C, (E5-2630L v2) | C19: ● | D19: ● | F19: ● | G19: ● | J19: ● | K19: ● | N19: ● | O19: ● | P19: ● | Q19: ● | R19: ● | S19: ● | T19: ● | U19: ● | V19: ● | W19: ● | X19: ● | Y19: ● | Z19: ● | AA19: <-- see note 5
B20: EP, 70W, 10C, (E5-2650L v2) | C20: ● | D20: ● | E20: ● | F20: ● | G20: ● | H20: ● | J20: ● | K20: ● | L20: ● | N20: ● | O20: ● | P20: ● | Q20: ● | R20: ● | S20: ● | T20: ● | U20: ● | V20: ● | W20: ● | X20: ● | Y20: ● | Z20: ● | AA20: <-- see note 5
B21: EP, 80W, 4C, (E5-2603 v2, E5-2609 v2) | C21: ● | D21: ● | E21: ● | F21: ● | G21: ● | H21: ● | I21: ● | J21: ● | K21: ● | L21: ● | M21: ● | N21: ● | O21: ● | P21: ● | Q21: ● | R21: ● | S21: ● | T21: ● | U21: ● | V21: ● | W21: ● | X21: ● | Y21: ● | Z21: ● | AA21: <-- see note 5
B22: EP, 80W, 6C, (E5-2620 v2, E5-2630 v2) | C22: ● | D22: ● | E22: ● | F22: ● | G22: ● | H22: ● | I22: ● | J22: ● | K22: ● | L22: ● | M22: ● | N22: ● | O22: ● | P22: ● | Q22: ● | R22: ● | S22: ● | T22: ● | U22: ● | V22: ● | W22: ● | X22: ● | Y22: ● | Z22: ● | AA22: <-- see note 5
B23: EP, 95w, 8C, (E5-2640 v2, E5-2650 v2) | C23: ● | D23: ● | E23: ● | F23: ● | G23: ● | H23: ● | I23: ● | J23: ● | K23: ● | L23: ● | M23: ● | N23: ● | O23: ● | P23: ● | Q23: ● | R23: ● | S23: ● | T23: ● | U23: ● | V23: ● | W23: ● | X23: ● | Y23: ● | Z23: ● | AA23: <-- see note 5
B24: EP, 95W. 10C, (E5-2660 v2) | C24: ● | D24: ● | E24: ● | F24: ● | G24: ● | H24: ● | I24: ● | J24: ● | K24: ● | L24: ● | M24: ● | N24: ● | O24: ● | P24: ● | Q24: ● | R24: ● | S24: ● | T24: ● | U24: ● | V24: ● | W24: ● | X24: ● | Y24: ● | Z24: ● | AA24: <-- see note 5
B25: EP, 115W, 10C, (E5-2670 v2, E5-2680 v2) | C25: ● | D25: ● | F25: ● | G25: ● | H25: ● | J25: ● | K25: ● | L25: ● | N25: ● | O25: ● | P25: ● | Q25: ● | R25: ● | S25: ● | T25: ● | U25: ● | V25: ● | W25: ● | X25: ● | Y25: ● | Z25: ● | AA25: <-- see note 5
B26: EP, 115W, 12C, (E5-2695 v2) | C26: ● | D26: ● | F26: ● | G26: ● | H26: ● | J26: ● | K26: ● | L26: ● | N26: ● | O26: ● | P26: ● | Q26: ● | R26: ● | S26: ● | T26: ● | U26: ● | V26: ● | W26: ● | X26: ● | Y26: ● | Z26: ● | AA26: <-- see note 5
B27: EP, 130W, 10C, (E5-2690 v2) | C27: ● | D27: ● | F27: ● | G27: ● | J27: ● | K27: ● | N27: ● | O27: ● | P27: ● | R27: ● | S27: ● | T27: ● | V27: ● | W27: ● | X27: ● | Y27: ● | AA27: <-- see note 5
B28: EP, 130W, 4C, (E5-2637 v2) | C28: ● | F28: ● | J28: ● | K28: ● | N28: ● | O28: ● | R28: ● | S28: ● | V28: ● | W28: ● | X28: ● | AA28: <-- see notes 4 and 5
B29: EP, 130W, 6C, (E5-2643 v2) | C29: ● | F29: ● | J29: ● | K29: ● | N29: ● | O29: ● | R29: ● | S29: ● | V29: ● | W29: ● | X29: ● | AA29: <-- see notes 4 and 5
B30: EP, 130W, 8C, (E5-2667 v2) | C30: ● | D30: ● | F30: ● | G30: ● | J30: ● | K30: ● | N30: ● | O30: ● | P30: ● | R30: ● | S30: ● | T30: ● | V30: ● | W30: ● | X30: ● | Y30: ● | AA30: <-- see note 5
B31: EP, 130W, 12C, (E5-2697 v2) | C31: ● | D31: ● | F31: ● | G31: ● | J31: ● | K31: ● | N31: ● | O31: ● | P31: ● | R31: ● | S31: ● | T31: ● | V31: ● | W31: ● | X31: ● | Y31: ● | AA31: <-- see note 5
A32: Memory Type (See notes 8 and 9) | B32: Dual Rank x8 | C32: ● | D32: ● | E32: ● | F32: ● | G32: ● | H32: ● | I32: ● | J32: ● | K32: ● | L32: ● | M32: ● | N32: ● | O32: ● | P32: ● | Q32: ● | R32: ● | S32: ● | T32: ● | U32: ● | V32: ● | W32: ● | X32: ● | Y32: ● | Z32: ●
B33: Dual Rank x4 | C33: ● | D33: ● | E33: ● | F33: ● | G33: ● | J33: ● | K33: ● | N33: ● | O33: ● | P33: ● | Q33: ● | R33: ● | S33: ● | T33: ● | U33: ● | V33: ● | W33: ● | X33: ● | Y33: ● | Z33: ●
B34: Quad Rank x8 | C34: ● | D34: ● | E34: ● | F34: ● | G34: ● | J34: ● | K34: ● | N34: ● | O34: ● | P34: ● | Q34: ● | R34: ● | S34: ● | T34: ● | U34: ● | V34: ● | W34: ● | X34: ● | Y34: ● | Z34: ●
B35: Quad Rank x4 | C35: ● | D35: ● | F35: ● | G35: ● | J35: ● | K35: ● | N35: ● | O35: ● | R35: ● | S35: ● | V35: ● | W35: ● | X35: ●
B36: Load Reduced DIMM | C36: ● | D36: ● | F36: ● | J36: ● | K36: ● | N36: ● | O36: ● | R36: ● | S36: ● | V36: ● | W36: ● | X36: ●
A37: Add-in Cards (See note 2) | B37: Riser #1 - Bottom Slot (1U riser and 2U riser) | C37: ● | D37: ● | E37: ● | F37: ● | G37: ● | H37: ● | I37: ● | J37: ● | K37: ● | L37: ● | M37: ● | N37: ● | O37: ● | P37: ● | Q37: ● | R37: ● | S37: ● | T37: ● | U37: ● | V37: ● | W37: ● | X37: ● | Y37: ● | Z37: ●
B38: Riser #1 - Middle Slot (2U riser) | F38: ● | G38: ● | H38: ● | I38: ● | J38: ● | K38: ● | L38: ● | M38: ● | N38: ● | O38: ● | P38: ● | Q38: ● | R38: ● | S38: ● | T38: ● | U38: ● | V38: ● | W38: ● | X38: ● | Y38: ● | Z38: ● | AA38: <-- see note 2
B39: Riser #1 - Top Slot (2U riser) | F39: ● | G39: ● | H39: ● | I39: ● | J39: ● | K39: ● | L39: ● | M39: ● | N39: ● | O39: ● | P39: ● | Q39: ● | R39: ● | S39: ● | T39: ● | U39: ● | V39: ● | W39: ● | X39: ● | Y39: ● | Z39: ● | AA39: <-- see note 2
B40: Riser #2 - Bottom Slot (1U riser and 2U riser) | C40: ● | D40: ● | E40: ● | F40: ● | G40: ● | H40: ● | I40: ● | J40: ● | K40: ● | L40: ● | M40: ● | N40: ● | O40: ● | P40: ● | Q40: ● | R40: ● | S40: ● | T40: ● | U40: ● | V40: ● | W40: ● | X40: ● | Y40: ● | Z40: ●
B41: Riser #2 - Middle Slot (2U riser) | F41: ● | G41: ● | H41: ● | I41: ● | J41: ● | K41: ● | L41: ● | M41: ● | N41: ● | O41: ● | P41: ● | Q41: ● | R41: ● | S41: ● | T41: ● | U41: ● | V41: ● | W41: ● | X41: ● | Y41: ● | Z41: ●
B42: Riser #2 - Top Slot (2U riser) | F42: ● | G42: ● | H42: ● | I42: ● | J42: ● | K42: ● | L42: ● | M42: ● | N42: ● | O42: ● | P42: ● | Q42: ● | R42: ● | S42: ● | T42: ● | U42: ● | V42: ● | W42: ● | X42: ● | Y42: ● | Z42: ●
A43: I/O Modules (See Note 3) | B43: Intel® Integrated RAID Modules (Mezzanine cards) | C43: ● | D43: ● | E43: ● | F43: ● | G43: ● | H43: ● | I43: ● | J43: ● | K43: ● | L43: ● | M43: ● | N43: ● | O43: ● | P43: ● | Q43: ● | R43: ● | S43: ● | T43: ● | U43: ● | V43: ● | W43: ● | X43: ● | Y43: ● | Z43: ●
B44: AXX10GBTWLIOM - Dual 10GBASE-T IO Module | C44: ● | D44: ● | E44: ● | F44: ● | J44: ● | K44: ● | N44: ● | O44: ● | P44: ● | Q44: ● | R44: ● | S44: ● | T44: ● | U44: ● | V44: ● | W44: ● | X44: ● | Y44: ● | Z44: ● | AA44: <-- see note 3
B45: AXX10GBNIAIOM - Dual SFP+ port 10GbE IO Module | C45: ● | D45: ● | E45: ● | F45: ● | G45: ● | H45: ● | I45: ● | J45: ● | K45: ● | L45: ● | M45: ● | N45: ● | O45: ● | P45: ● | Q45: ● | R45: ● | S45: ● | T45: ● | U45: ● | V45: ● | W45: ● | X45: ● | Y45: ● | Z45: ●
B46: AXX1FDRIBIOM - Single Port FDR Infiniband IO Module | C46: ● | D46: ● | E46: ● | F46: ● | G46: ● | H46: ● | I46: ● | J46: ● | K46: ● | L46: ● | M46: ● | N46: ● | O46: ● | P46: ● | Q46: ● | R46: ● | S46: ● | T46: ● | U46: ● | V46: ● | W46: ● | X46: ● | Y46: ● | Z46: ●
B47: AXX2FDRIBIOM - Dual Port FDR Infiniband IO Module | C47: ● | D47: ● | E47: ● | F47: ● | J47: ● | K47: ● | N47: ● | O47: ● | P47: ● | Q47: ● | R47: ● | S47: ● | T47: ● | U47: ● | V47: ● | W47: ● | X47: ● | Y47: ● | Z47: ● | AA47: <-- see note 3
B48: AXX4P1GBPWLIOM - Quad Port 1GbE IO Module | C48: ● | D48: ● | E48: ● | F48: ● | G48: ● | H48: ● | I48: ● | J48: ● | K48: ● | L48: ● | M48: ● | N48: ● | O48: ● | P48: ● | Q48: ● | R48: ● | S48: ● | T48: ● | U48: ● | V48: ● | W48: ● | X48: ● | Y48: ● | Z48: ●
A49: MIC or GPU (see note 7) | B49: Intel® Xeon Phi™ or GPGPU wActive Cooling up to 300W | N49: ● | R49: ● | V49: ● | W49: ● | Y49: ● | AA49: <-- See Note 7
B50: Intel® Xeon Phi™ or GPGPU w/Active Cooling up to 225W | N50: ● | R50: ● | V50: ● | W50: ● | Y50: ● | AA50: <-- See Note 7
B51: Intel® Xeon Phi™ w/Passive Cooling up to 225W | R51: ● | S51: ● | T51: ● | U51: ● | V51: ● | W51: ● | X51: ● | Y51: ● | Z51: ● | AA51: <-- See Note 7 and 13
B52: Intel® Xeon Phi™ w/Passive Cooling up to 245W | R52: ● | V52: ● | W52: ● | Y52: ● | AA52: <-- See Note 7 and 13
B53: Intel® Xeon Phi™ w/Passive Cooling up to 300W | V53: ● | W53: ● | AA53: <-- See Note 7 and 13
B54: Non-Intel GPGPU w/Passive Cooling up to 75W | N54: ● | O54: ● | R54: ● | S54: ● | V54: ● | W54: ● | X54: ● | AA54: <-- See Note 7
B55: Non-Intel GPGPU w/Passive Cooling > 75W | AA55: <-- See Note 7, 13 and 14
A56: Battery Backup (See note 10) | B56: BBU (rated to 45C) | C56: ● | F56: ● | G56: ● | J56: ● | K56: ● | N56: ● | O56: ● | R56: ● | S56: ● | V56: ● | W56: ● | X56: ●
B57: Supercap (rated to 55C) | C57: ● | D57: ● | E57: ● | F57: ● | G57: ● | H57: ● | I57: ● | J57: ● | K57: ● | L57: ● | M57: ● | N57: ● | O57: ● | P57: ● | Q57: ● | R57: ● | S57: ● | T57: ● | U57: ● | V57: ● | W57: ● | X57: ● | Y57: ● | Z57: ●
B58: Cache Offload Module (rated to 55C) | C58: ● | D58: ● | E58: ● | F58: ● | G58: ● | H58: ● | I58: ● | J58: ● | K58: ● | L58: ● | M58: ● | N58: ● | O58: ● | P58: ● | Q58: ● | R58: ● | S58: ● | T58: ● | U58: ● | V58: ● | W58: ● | X58: ● | Y58: ● | Z58: ● | AA58: <-- See note 10
A59: Internal SSD (See note 11) | B59: Rated to 60C | F59: ● | J59: ● | N59: ● | R59: ● | V59: ●
B60: Rated to 70C | F60: ● | G60: ● | J60: ● | K60: ● | N60: ● | O60: ● | R60: ● | S60: ● | V60: ● | W60: ● | X60: ●

Sheet Summary
A1: Power Budget | B1: =CONCATENATE(INDEX(Chassis!$L$3:$L$13,'Intel Chassis'!$B3)," / ",INDEX(Serverboard!A$2:A$13,'Serverboard Config'!$B5) ) -> (Select a Chassis) / (Select Serverboard)
A2: Chassis/ Power Supply / Cooling: | B2: =INDEX(Chassis!A$3:A$13,'Intel Chassis'!$B3) -> (Select Chassis)
A3: Serverboard: | B3: =INDEX(Serverboard!A$2:A$13,'Serverboard Config'!$B5) -> (Select Serverboard)
A4: System Totals | B4: +12V (amps) | C4: 12VSB (amps) | D4: Total System Watts
A5: =CONCATENATE("Processors - Qty ",'Serverboard Config'!C4, ":") -> Processors - Qty 1: | B5: =SUM('Serverboard Config'!F3) -> 0 | C5: =SUM('Serverboard Config'!G3) -> 0 | D5: =SUM('Serverboard Config'!H3) -> 0
A6: =CONCATENATE("Modules + PCI Cards - Qty ",('Serverboard Config'!B7>1) + ('Serverboard Config'!B8>1) + ('Serverboard Config'!B9>1) + ('Serverboard Config'!B10>1) +('Serverboard Config'!B11>1)+('Serverboard Config'!B12>1)+('Serverboard Config'!B13>1)+('Serverboard Config'!B15>1)+('Serverboard Config'!B16>1),":") -> Modules + PCI Cards - Qty 0: | B6: =SUM('Serverboard Config'!F7:F16) -> 0 | C6: =SUM('Serverboard Config'!G7:G16) -> 0 | D6: =SUM('Serverboard Config'!H7:H16) -> 0
A7: =CONCATENATE("Hard Drives - Qty ",'Intel Chassis'!C4+'Intel Chassis'!C5,":") -> Hard Drives - Qty 0: | B7: =SUM('Intel Chassis'!G4:G5) -> 0 | C7: 0 | D7: =SUM('Intel Chassis'!I4:I5) -> 0
A8: Serverboard & Memory: | B8: =SUM('Serverboard Config'!F5:F6) -> 0 | C8: =SUM('Serverboard Config'!G5:G6) -> 0 | D8: =SUM('Serverboard Config'!H5:H6) -> 0
A9: Chassis & Peripherals: | B9: =_Sys12 - B7 -> 0 | C9: ='Intel Chassis'!H12 -> 0 | D9: =3.3*Sys3.3+5*_Sys5+ 12*_Sys12-D7 -> 0
A10: System Totals: | B10: =SUM(B5:B9) -> 0 | C10: =SUM(C5:C9) -> 0 | D10: =SUM(D5:D9) -> 0
A11: =TEXT(INDEX(Summary!H19:H22,Summary!B19),"###") & TEXT(INDEX(Summary!I19:I22,Summary!B19),"###") &" PS DC Output Limits:" -> 220VAC PS DC Output Limits: | B11: =INDEX(Chassis!B$3:B$13,'Intel Chassis'!$B3) -> 0 | C11: =INDEX(Chassis!C$3:C$13,'Intel Chassis'!$B3) -> 0 | D11: =INDEX(Chassis!D$3:D$13,'Intel Chassis'!$B3) -> 0 | E11: <-- These limits may change based on inlet voltage
A12: CLST Allowance | B12: ='Serverboard Config'!F21 -> 0 | D12: ='Serverboard Config'!H21 -> 0
A13: Total System Limits | B13: =B12+PS1_12 -> 0 | C13: =C12+PS1_5VSB -> 0 | D13: =D12+ps1CombLim -> 0
A14: Margins to Limit: | B14: =B13-B10 -> 0 | C14: =C13-C10 -> 0 | D14: =D13-PowerTotal -> 0 | E14: =IF((OR(B14<0,C14<0)),"<-- Limits Exceeded!","<--System Margins") -> <--System Margins
A15: Negative margins show configuration exceeds a specified limit. | D15: =(D11-D10)/D11 ->  | E15: <-- % margin to PS rating
A18: AC inlet power estimate (below)
A19: Input Voltage: | B19: 1 | C19: (Volts) | H19: 220 | I19: VAC
A20: Estimated Inlet Power: | B20: =IF(INDEX(Chassis!$H$3:$K$13,'Intel Chassis'!$B3,B19)="na","na",PowerTotal/ (INDEX(Chassis!$H$3:$K$13,'Intel Chassis'!$B3,B19)+0.001)) -> 0 | C20: (Watts) | D20: Calculation is blank if voltage does not match PS type | H20: 115 | I20: VAC
A21: Estimated Inlet Current: | B21: =IF(B20="na","na",B20/ABS(INDEX(H19:H22,B19))) -> 0 | C21: (Amps) | D21: Calculation is blank if voltage does not match PS type | H21: -48 | I21: VDC
A22: Estimated Thermal Dissipation: | B22: =IF(B20="na","na",B20*3.41) -> 0 | C22: (BTU/Hr) | D22: Calculation is blank if voltage does not match PS type | H22: -60 | I22: VDC
A23: Note: Estimates are most accurate at max loading.
A26: If your desired configuration exceeds the power supply limits, two power supplies are required. The two power supplies will operate in a current sharing mode
A27: to deliver the additional power needed for your configuration. Furthermore, the two power supplies may need to be sourced from separate AC circuits in order to not
A28: exceed maximum AC outlet current. Exceeding maximum AC outlet current may cause a circuit breaker to trip.
A30: For A3/A4 individual PS selection
A31: 1) For dual power supply configuration, power budget must fit within single power supply rated load and be installed in dual configuration, or
A32: 2) For single power supply configuration, power budget must be sized with 30% margin to single power supply rated load.
A34: =CONCATENATE("Revision: ",Revision!B1) -> Revision: 2.4 | B34: =Revision!A1 -> 2013-08-27

Sheet Intel Chassis
A1: Power Budget | B1: =CONCATENATE(INDEX(Chassis!$L$3:$L$13,B3), " System Configuration") -> (Select a Chassis) System Configuration | K1: HSBP VRM Efficiency
A2: System Feature | B2: Description | C2: Qty | E2: +3.3V (amps) | F2: +5V (amps) | G2: +12V (amps) | H2: 12V stby (amps) | I2: Power (watts) | K2: =INDEX(Chassis!$G$3:$G$13,B3) -> 1
A3: Chassis: | B3: 1 | G3: =INDEX(Chassis!$E$3:$E$13,B3)+IF(INDEX(Chassis!$F$3:$F$13,B3)="Y",(INDEX(Processors!C2:C33,'Serverboard Config'!B3)*'Serverboard Config'!C4),0) -> 0 | I3: =G3*12+H3*12 -> 0 | J3: Includes System Fans
A4: 1st Hard Drive Type: | B4: 1 | C4: 0 | F4: =INDEX(HardDrive!$C$2:$C$16,B4) *C4 * 1 -> 0 | G4: =(INDEX(HardDrive!$D$2:$D$16,B4)*C4+((F4*5)/12)/$K$2) *1 -> 0 | I4: 0 | J4: =IF(C4+C5>(INDEX(HardDrive!$F$19:$F$31*$C$6,'Intel Chassis'!$B$6))," <-- Max Supported HDD Count Exceeded!"," ") -> 
A5: 2nd Hard Drive Type: | B5: 1 | C5: 0 | F5: =INDEX(HardDrive!$C$2:$C$16,B5) *C5 *1 -> 0 | G5: =(INDEX(HardDrive!$D$2:$D$16,B5) *C5+((F5*5)/12)/$K$2) *1 -> 0 | I5: 0 | J5: =IF(C4+C5>(INDEX(HardDrive!$F$19:$F$31*$C$6,'Intel Chassis'!$B$6))," <-- Max Supported HDD Count Exceeded!"," ") -> 
A6: Backplane: | B6: 1 | C6: 0 | G6: =(INDEX(HardDrive!$D$19:$D$31,B6) *C6+((F6*5)/12)/$K$2) *1 -> 0 | I6: 0
A7: Midplane Expander: | B7: 1 | C7: 1 | G7: =(INDEX(Peripherals!$D$21:$D$27,B7) *C7) *1 -> 0 | I7: 0
A8: USB: | B8: Number of Devices (100mA/device) | C8: 0 | F8: =0.1*C8 -> 0 | G8: =((F8*5)/12)/_5vVRM -> 0 | I8: 0
A9: Display: | B9: Optional LCP | C9: 0 | H9: =(0.171*3.3)/12/_stbyVRM*C9 -> 0 | I9: 0
A10: Slim-line Bay: | B10: 1 | C10: 1 | F10: =INDEX(Peripherals!C$3:C$9,$B10) *C10 -> 0 | G10: =(INDEX(Peripherals!$D$3:$D$9,B10)*C10+((F10*5)/12)/_5vVRM) *1 -> 0 | I10: 0
A11: SSD Bay: | B11: 1 | C11: 0 | E11: =INDEX(Peripherals!B$12:B$18,$B11)*C11 -> 0 | F11: =INDEX(Peripherals!C$12:C$18,$B11) *C11 -> 0 | G11: =(INDEX(Peripherals!$D$12:$D$18,B11)*C11+((E11*3.3)/12)/_3vVRM+((F11*5)/12)/_5vVRM) *1 -> 0 | I11: 0 | J11: *2U Chassis Only
B12: SubTotals: | G12: =SUM(G3:G11) -> 0 | H12: =SUM(H3:H11) -> 0 | I12: =E12*3.3+F12*5+G12*12 -> 0
B13: SubTotal Chassis Power (Watts): | G13: =G12*12 -> 0 | H13: =H12*5 -> 0 | I13: =SUM(E13:G13) -> 0
B14: Total System usage: | G14: =Summary!B10 -> 0 | H14: =Summary!C10 -> 0 | I14: =Summary!D10 -> 0
B15: =TEXT(INDEX(Summary!H19:H22,Summary!B19),"###") & TEXT(INDEX(Summary!I19:I22,Summary!B19),"###") &" PS DC Output Limits:" -> 220VAC PS DC Output Limits: | G15: =PS1_12 -> 0 | H15: =PS1_5VSB -> 0 | I15: =ps1CombLim -> 0 | J15: <-- These limits may change based on inlet voltage
B16: CLST Allowance: | G16: ='Serverboard Config'!F21 -> 0 | I16: ='Serverboard Config'!H21 -> 0
B17: Total System Limits: | G17: ='Serverboard Config'!F22 -> 0 | H17: =H15 -> 0 | I17: ='Serverboard Config'!H22 -> 0
B18: Margins compared to Limits: | G18: =G17-G14 -> 0 | H18: 0 | I18: =I17-I14 -> 0 | J18: =IF(OR(G18<0,H18<0,I18<0),"<-- Limits Exceeded!","<--System Margins") -> <--System Margins
I19: =(I15-I14)/I15 ->  | J19: <-- % margin to PS rating

Sheet Serverboard Config
A1: Power Budget | B1: =CONCATENATE(INDEX(Serverboard!A$2:A$13,$B5)," Configuration") -> (Select Serverboard) Configuration | J1: CPU VRM Efficiency | K1: Mem VR Efficiency | L1: 3.3v VRM Efficiency | M1: 5v VRM Efficiency | N1: 3.3 Stby VR Efficiency
A2: Serverboard Feature | B2: Description | D2: +3.3V (amps) | E2: +5V (amps) | F2: +12V (amps) | G2: 12V stby (amps) | H2: Power (watts) | J2: =INDEX(Serverboard!E$2:E$11,$B5) -> 1 | K2: =INDEX(Serverboard!F$2:F$11,$B5) -> 0 | L2: =INDEX(Serverboard!G$2:G$11,$B5) -> 1 | M2: =INDEX(Serverboard!H$2:H$11,$B5) -> 1 | N2: =INDEX(Serverboard!I$2:I$11,$B5) -> 1 | O2: <--Hide these columns
A3: Processors: | B3: 1 | F3: =C4*INDEX(Processors!B$2:B$33,$B3)/12/VRMefficiency*0.9 -> 0 | H3: =F3*12+E3*5 -> 0
B4: Quantity: | C4: 1
A5: Serverboard: | B5: 1 | F5: =INDEX(Serverboard!B$2:B$13,$B5) *1 -> 0 | G5: =INDEX(Serverboard!C$2:C$13,$B5) *1 -> 0 | H5: =INDEX(Serverboard!D$2:D$13,$B5) *1 -> 0
A6: Memory: | B6: 1 | C6: 1 | F6: =IF(C6=1,0,((HLOOKUP(INDEX(Memory!A28:A38,$C6),Memory!B5:I18,B6+2,FALSE))/12/_MemVR*0.9)) -> 0 | H6: =D6*3.3+E6*5+F6*12+G6*12 -> 0 | I6: =IF(C6=1,"",IF(HLOOKUP(INDEX(Memory!A28:A38,$C6),Memory!B5:I18,B6+2,FALSE)="na","<-- unsupported DIMM config","")) -> 
A7: PCI Card #1: | B7: 1 | D7: =INDEX(PCI!B$2:B$17,$B7) -> 0 | E7: =INDEX(PCI!C$2:C$17,$B7) -> 0 | F7: =INDEX(PCI!D$2:D$17,$B7)+((D7*3.3)/12)/$L$2+((E7*5)/12)/$M$2 -> 0 | G7: =((INDEX(PCI!$E$2:$E$17,$B7)*3.3)+(INDEX(PCI!$F$2:$F$17,$B7))*5)/12/_stbyVRM -> 0 | H7: =F7*12+G7*12 -> 0
A8: PCI Card #2: | B8: 1 | D8: =INDEX(PCI!B$2:B$17,$B8) -> 0 | E8: =INDEX(PCI!C$2:C$17,$B8) -> 0 | F8: =INDEX(PCI!D$2:D$17,$B8)+((D8*3.3)/12)/$L$2+((E8*5)/12)/$M$2 -> 0 | G8: =((INDEX(PCI!$E$2:$E$17,$B8)*3.3)+(INDEX(PCI!$F$2:$F$17,$B8))*5)/12/_stbyVRM -> 0 | H8: 0
A9: PCI Card #3: | B9: 1 | D9: =INDEX(PCI!B$2:B$17,$B9) -> 0 | E9: =INDEX(PCI!C$2:C$17,$B9) -> 0 | F9: =INDEX(PCI!D$2:D$17,$B9)+((D9*3.3)/12)/$L$2+((E9*5)/12)/$M$2 -> 0 | G9: =((INDEX(PCI!$E$2:$E$17,$B9)*3.3)+(INDEX(PCI!$F$2:$F$17,$B9))*5)/12/_stbyVRM -> 0 | H9: 0
A10: PCI Card #4: | B10: 1 | D10: =INDEX(PCI!B$2:B$17,$B10) -> 0 | E10: =INDEX(PCI!C$2:C$17,$B10) -> 0 | F10: =INDEX(PCI!D$2:D$17,$B10)+((D10*3.3)/12)/$L$2+((E10*5)/12)/$M$2 -> 0 | G10: =((INDEX(PCI!$E$2:$E$17,$B10)*3.3)+(INDEX(PCI!$F$2:$F$17,$B10))*5)/12/_stbyVRM -> 0 | H10: 0
A11: PCI Card #5: | B11: 1 | D11: =INDEX(PCI!B$2:B$17,$B11) -> 0 | E11: =INDEX(PCI!C$2:C$17,$B11) -> 0 | F11: =INDEX(PCI!D$2:D$17,$B11)+((D11*3.3)/12)/$L$2+((E11*5)/12)/$M$2 -> 0 | G11: =((INDEX(PCI!$E$2:$E$17,$B11)*3.3)+(INDEX(PCI!$F$2:$F$17,$B11))*5)/12/_stbyVRM -> 0 | H11: 0
A12: PCI Card #6: | B12: 1 | D12: =INDEX(PCI!B$2:B$17,$B12) -> 0 | E12: =INDEX(PCI!C$2:C$17,$B12) -> 0 | F12: =INDEX(PCI!D$2:D$17,$B12)+((D12*3.3)/12)/$L$2+((E12*5)/12)/$M$2 -> 0 | G12: =((INDEX(PCI!$E$2:$E$17,$B12)*3.3)+(INDEX(PCI!$F$2:$F$17,$B12))*5)/12/_stbyVRM -> 0 | H12: 0
A13: RMM4: | B13: 1 | D13: =INDEX(PCI!B$38:B$42,$B13) -> 0 | E13: =INDEX(PCI!C$38:C$42,$B13) -> 0 | F13: =INDEX(PCI!D$38:D$42,$B13)+((D13*3.3)/12)/$L$2+((E13*5)/12)/$M$2 -> 0 | G13: =((INDEX(PCI!E38:E42,$B13)*3.3)+(INDEX(PCI!F38:F42,$B13))*5)/12/_stbyVRM -> 0 | H13: 0
A14: eUSB: | B14: 1 | D14: =INDEX(PCI!B$45:B$48,$B14) -> 0 | E14: =INDEX(PCI!C$45:C$48,$B14) -> 0 | F14: =INDEX(PCI!D$45:D$48,$B14)+((D14*3.3)/12)/$L$2+((E14*5)/12)/$M$2 -> 0 | G14: =((INDEX(PCI!E45:E48,$B14)*3.3)+(INDEX(PCI!F45:F48,$B14))*5)/12/_stbyVRM -> 0 | H14: 0
A15: SAS Mezzanine: | B15: 1 | D15: =INDEX(PCI!B$20:B$24,$B15) -> 0 | E15: =INDEX(PCI!C$20:C$24,$B15) -> 0 | F15: =INDEX(PCI!D$20:D$24,$B15)+((D15*3.3)/12)/$L$2+((E15*5)/12)/$M$2 -> 0 | G15: =((INDEX(PCI!E20:E24,$B15)*3.3)+(INDEX(PCI!F20:F24,$B15))*5)/12/_stbyVRM -> 0 | H15: 0
A16: IO Module: | B16: 1 | D16: =INDEX(PCI!B$27:B$35,$B16) -> 0 | E16: =INDEX(PCI!C$27:C$35,$B16) -> 0 | F16: =INDEX(PCI!D$27:D$35,$B16)+((D16*3.3)/12)/$L$2+((E16*5)/12)/$M$2 -> 0 | G16: =((INDEX(PCI!E27:E35,$B16)*3.3)+(INDEX(PCI!F27:F35,$B16))*5)/12/_stbyVRM -> 0 | H16: 0
B17: SubTotals: | F17: =SUM(F3:F16) -> 0 | G17: =SUM(G3:G16) -> 0 | H17: =SUM(H3:H16) -> 0
B18: SubTotal Serverboard Power (Watts): | F18: =(F17)*12 -> 0 | G18: =(G17)*5 -> 0 | H18: =SUM(D18:G18) -> 0
B19: Total System usage: | F19: =Summary!B10 -> 0 | G19: =Summary!C10 -> 0 | H19: =Summary!D10 -> 0
B20: =TEXT(INDEX(Summary!H19:H22,Summary!B19),"###") & TEXT(INDEX(Summary!I19:I22,Summary!B19),"###") &" PS DC Output Limits:" -> 220VAC PS DC Output Limits: | F20: =PS1_12 -> 0 | G20: =PS1_5VSB -> 0 | H20: =ps1CombLim -> 0 | I20: <-- These limits may change based on inlet voltage
B21: CLST Allowance: | F21: =F3*25%+F6*20% -> 0 | H21: =H3*25%+H6*20% -> 0
B22: Total System Limits: | F22: =F21+F20 -> 0 | G22: =G21+G20 -> 0 | H22: =H21+H20 -> 0
C23: Margin compared to Limits: | F23: =F22-F19 -> 0 | G23: =G22-G19 -> 0 | H23: =H22-H19 -> 0 | I23: =IF(OR(F23<0,G23<0,H23<0),"<-- Limits Exceeded!","<--System Margins") -> <--System Margins
H24: =(H20-H19)/H20 ->  | I24: <-- % margin to PS rating
A30: CPU = 25% of TDP
A31: Memory = 10% Bandwidth

Sheet Serverboard
A1: Serverboard | B1: 12 | C1: 12VSB | D1: Watts | E1: CPU VR Eff% | F1: Mem VR Eff% | G1: 5v VR Eff% | H1: 3v VR Eff% | I1: Stby/Aux Eff%
A2: (Select Serverboard) | E2: 1 | G2: 1 | H2: 1 | I2: 1
A3: S2600GZ Serverboard | B3: =32/12 -> 2.666666667 | C3: =0.414/12/0.9 -> 0.03833333333 | D3: =B3*12+C3*12 -> 32.46 | E3: 0.85 | F3: 0.84 | G3: 0.85 | H3: 0.9 | I3: 0.87 | J3: Pwr Budget v6
A4: S2600GL Serverboard | B4: =32/12 -> 2.666666667 | C4: =0.414/12/0.9 -> 0.03833333333 | D4: =B4*12+C4*12 -> 32.46 | E4: 0.85 | F4: 0.84 | G4: 0.85 | H4: 0.9 | I4: 0.87 | J4: Pwr Budget v6
D5: 0 | E5: 0.8 | F5: 0.8 | G5: 0.8 | H5: 0.8 | I5: 0.8 | J5: <-- Define Custom Numbers Here
D6: 0 | E6: 0.8 | F6: 0.8 | G6: 0.8 | H6: 0.8 | I6: 0.8 | J6: <-- Define Custom Numbers Here
D7: 0 | E7: 0.8 | F7: 0.8 | G7: 0.8 | H7: 0.8 | I7: 0.8 | J7: <-- Define Custom Numbers Here
D8: 0 | E8: 0.8 | F8: 0.8 | G8: 0.8 | H8: 0.8 | I8: 0.8 | J8: <-- Define Custom Numbers Here
D9: 0 | E9: 0.8 | F9: 0.8 | G9: 0.8 | H9: 0.8 | I9: 0.8 | J9: <-- Define Custom Numbers Here
D10: 0 | E10: 0.8 | F10: 0.8 | G10: 0.8 | H10: 0.8 | I10: 0.8 | J10: <-- Define Custom Numbers Here
D11: 0 | E11: 0.8 | F11: 0.8 | G11: 0.8 | H11: 0.8 | I11: 0.8 | J11: <-- Define Custom Numbers Here

Sheet Chassis
A1: Chassis | D1: Total | E1: Fans | F1: HS Fan | G1: HSBP | H1: PS Eff% | L1: Product Name | M1: Total 12 DC Current (Amps) | Q1: Total DC Ouput (Watts)
A2: Selection | B2: 12V | C2: 12VSB | D2: Watts | E2: 12V | F2: (Y/N) | G2: VR Eff% | H2: 220VAC | I2: 115VAC | J2: -48DCV | K2: -60DCV | M2: 220VAC | N2: 115VAC | O2: -48DCV | P2: -60DCV | Q2: 220VAC | R2: 115VAC | S2: -48DCV | T2: -60DCV
A3: (Select Chassis) | G3: 1 | H3: 1 | I3: 1 | J3: 1 | K3: 1 | L3: (Select a Chassis)
A4: R1XXX (1U 750W AC PSU) | B4: =INDEX(M4:P4,Summary!$B$19) -> 62 | C4: 2.1 | D4: =INDEX(Q4:T4,Summary!$B$19) -> 750 | E4: =6*1.3 -> 7.8 | F4: N | G4: 0.9 | H4: 0.94 | I4: 0.92 | J4: na | K4: na | L4: R1XXX | M4: 62 | N4: 62 | O4: 62 | P4: 62 | Q4: 750 | R4: 750 | S4: 750 | T4: 750 | U4: PS Eff% from measured curves
A5: R1XXX (1U 460W AC PSU) | B5: =INDEX(M5:P5,Summary!$B$19) -> 38 | C5: 2.1 | D5: =INDEX(Q5:T5,Summary!$B$19) -> 460 | E5: =6*1.3 -> 7.8 | F5: N | G5: 0.9 | H5: 0.92 | I5: 0.89 | J5: na | K5: na | L5: R1XXX | M5: 38 | N5: 38 | O5: 38 | P5: 38 | Q5: 460 | R5: 460 | S5: 460 | T5: 460 | U5: PS Eff% from measured curves
A6: R2XXX (2U 750W AC PSU) | B6: =INDEX(M6:P6,Summary!$B$19) -> 62 | C6: 2.1 | D6: =INDEX(Q6:T6,Summary!$B$19) -> 750 | E6: =5*1.6 -> 8 | F6: N | G6: 0.9 | H6: 0.94 | I6: 0.92 | J6: na | K6: na | L6: R2XXX | M6: 62 | N6: 62 | O6: 62 | P6: 62 | Q6: 750 | R6: 750 | S6: 750 | T6: 750 | U6: PS Eff% from measured curves
A7: R2XXX (2U 460W ACPSU) | B7: =INDEX(M7:P7,Summary!$B$19) -> 38 | C7: 2.1 | D7: =INDEX(Q7:T7,Summary!$B$19) -> 460 | E7: =5*1.6 -> 8 | F7: N | G7: 0.9 | H7: 0.92 | I7: 0.89 | J7: na | K7: na | L7: R2XXX | M7: 38 | N7: 38 | O7: 38 | P7: 38 | Q7: 460 | R7: 460 | S7: 460 | T7: 460 | U7: PS Eff% from measured curves
A8: R2XXX (2U 750W DC PSU) | B8: =INDEX(M8:P8,Summary!$B$19) -> 62 | C8: 2.1 | D8: =INDEX(Q8:T8,Summary!$B$19) -> 750 | E8: =5*1.6 -> 8 | F8: N | G8: 0.9 | H8: na | I8: na | J8: 0.9 | K8: 0.9 | L8: R2XXX | M8: 62 | N8: 62 | O8: 62 | P8: 62 | Q8: 750 | R8: 750 | S8: 750 | T8: 750 | U8: PS Eff% from measured curves
A9: User Definable | B9: =INDEX(M9:P9,Summary!$B$19) -> 0 | D9: =INDEX(Q9:T9,Summary!$B$19) -> 0 | F9: N | G9: 0.8 | H9: 0.8 | I9: 0.8 | J9: 0.8 | K9: 0.8 | U9: <-- Define Custom Numbers Here
A10: User Definable | B10: =INDEX(M10:P10,Summary!$B$19) -> 0 | D10: =INDEX(Q10:T10,Summary!$B$19) -> 0 | F10: N | G10: 0.8 | H10: 0.8 | I10: 0.8 | J10: 0.8 | K10: 0.8 | U10: <-- Define Custom Numbers Here
A11: User Definable | B11: =INDEX(M11:P11,Summary!$B$19) -> 0 | D11: =INDEX(Q11:T11,Summary!$B$19) -> 0 | F11: N | G11: 0.8 | H11: 0.8 | I11: 0.8 | J11: 0.8 | K11: 0.8 | U11: <-- Define Custom Numbers Here
A12: User Definable | B12: =INDEX(M12:P12,Summary!$B$19) -> 0 | D12: =INDEX(Q12:T12,Summary!$B$19) -> 0 | F12: N | G12: 0.8 | H12: 0.8 | I12: 0.8 | J12: 0.8 | K12: 0.8 | U12: <-- Define Custom Numbers Here
A13: User Definable | B13: =INDEX(M13:P13,Summary!$B$19) -> 0 | D13: =INDEX(Q13:T13,Summary!$B$19) -> 0 | F13: N | G13: 0.8 | H13: 0.8 | I13: 0.8 | J13: 0.8 | K13: 0.8 | U13: <-- Define Custom Numbers Here
A17: Note: HS Fan (Y/N) determines if an Active Heatsink (Heatsink with Fan) in Intel® Boxed Processors is used (adds fan power to budget)
A18: Note: PS Eff is estimate @ typ voltage & 35% to 90% loading based on PS measurement data.

Sheet Processors
A1: Processor Types | B1: TDP (W) | C1: HS Fan (A) | D1: Source | F1: VRM#1 | G1: VRM#2
A2: (Select Processor) | F2: 5V VRM | G2: 12V VRM
A3: Intel Xeon® E5-2690 v2 (130W) | B3: 130 | D3: EDS rev1.5 - Intel Doc #511819
A4: Intel Xeon® E5-2680 v2 (115W) | B4: 115 | D4: EDS rev1.5 - Intel Doc #511819
A5: Intel Xeon® E5-2670 v2 (115W) | B5: 115 | D5: EDS rev1.5 - Intel Doc #511819
A6: Intel Xeon® E5-2667 v2 (130W) | B6: 130 | D6: EDS rev1.5 - Intel Doc #511819
A7: Intel Xeon® E5-2660 v2 (95W) | B7: 95 | D7: EDS rev1.5 - Intel Doc #511819
A8: Intel Xeon® E5-2650 v2 (95W) | B8: 95 | D8: EDS rev1.5 - Intel Doc #511819
A9: Intel Xeon® E5-2640 v2 (95W) | B9: 95 | D9: EDS rev1.5 - Intel Doc #511819
A10: Intel Xeon® E5-2630 v2 (80W) | B10: 80 | D10: EDS rev1.5 - Intel Doc #511819
A11: Intel Xeon® E5-2620 v2 (80W) | B11: 80 | D11: EDS rev1.5 - Intel Doc #511819
A12: Intel Xeon® E5-2609 v2 (80W) | B12: 80 | D12: EDS rev1.5 - Intel Doc #511819
A13: Intel Xeon® E5-2603 v2 (80W) | B13: 80 | D13: EDS rev1.5 - Intel Doc #511819
A14: Intel Xeon® E5-2650L v2 (70W) | B14: 70 | D14: EDS rev1.5 - Intel Doc #511819
A15: Intel Xeon® E5-2630L v2 (60W) | B15: 60 | D15: EDS rev1.5 - Intel Doc #511819
A16: Intel Xeon® E5-2690 (135W) | B16: 135 | D16: EDS rev1.8 - Intel Doc #442505 | F16: 12V VRM | G16: None
A17: Intel Xeon® E5-2680 (130W) | B17: 130 | D17: EDS rev1.8 - Intel Doc #442505 | F17: 12V VRM | G17: None
A18: Intel Xeon® E5-2670 (115W) | B18: 115 | D18: EDS rev1.8 - Intel Doc #442505 | F18: None
A19: Intel Xeon® E5-2665 (115W) | B19: 115 | D19: EDS rev1.8 - Intel Doc #442505
A20: Intel Xeon® E5-2660 (95W) | B20: 95 | D20: EDS rev1.8 - Intel Doc #442505
A21: Intel Xeon® E5-2650 (95W) | B21: 95 | D21: EDS rev1.8 - Intel Doc #442505
A22: Intel Xeon® E5-2640 (95W) | B22: 95 | D22: EDS rev1.8 - Intel Doc #442505
A23: Intel Xeon® E5-2630 (95W) | B23: 95 | D23: EDS rev1.8 - Intel Doc #442505
A24: Intel Xeon® E5-2620 (95W) | B24: 95 | D24: EDS rev1.8 - Intel Doc #442505
A25: Intel Xeon® E5-2609 (80W) | B25: 80 | D25: EDS rev1.8 - Intel Doc #442505
A26: Intel Xeon® E5-2603 (80W) | B26: 80 | D26: EDS rev1.8 - Intel Doc #442505
A27: Intel Xeon® E5-2650L (70W) | B27: 70 | D27: EDS rev1.8 - Intel Doc #442505
A28: Intel Xeon® E5-2630L (60W) | B28: 60 | D28: EDS rev1.8 - Intel Doc #442505
E29: <-- Define Custom Numbers Here
E30: <-- Define Custom Numbers Here
E31: <-- Define Custom Numbers Here
E32: <-- Define Custom Numbers Here
E33: <-- Define Custom Numbers Here
E34: <-- Define Custom Numbers Here
A37: Processor Quantities (used for tool operation)
A38: 1 | B38: 1
A39: 2 | B39: 2
A40: 3 | B40: 3
A41: 4 | B41: 4
A43: Note: HS Fan = Fan 12v current for Active Heatsink which ships with Intel® Boxed Processors

Sheet Memory
B1: Watts of +12V
B3: 1DPC | C3: 1DPC | D3: 1DPC | E3: 1DPC | F3: 1&2DPC | G3: 2DPC | H3: 2&3DPC | I3: 3DPC
B4: # of DIMMS
A5: Memory | B5: 1 | C5: 2 | D5: 4 | E5: 8 | F5: 12 | G5: 16 | H5: 20 | I5: 24
A7: (Select Memory)
A8: 8GB DDR3 RDIMM (4Gb, DRx8) | B8: =5.2*B$5 -> 5.2 | C8: =5.2*C$5 -> 10.4 | D8: 20.8 | E8: 41.6 | F8: =5.2*4 +5.2*8 -> 62.4 | G8: =5.2*16 -> 83.2 | H8: =5.2*16+3.9*4 -> 98.8 | I8: =3.9*24 -> 93.6
A9: 16GB DDR3 RDIMM (4Gb, DRx4) | B9: =8.3*B$5 -> 8.3 | C9: =8.3*C$5 -> 16.6 | D9: 33.2 | E9: 66.4 | F9: =8.3*4 +7.4*8 -> 92.4 | G9: =7.4*16 -> 118.4 | H9: =7.4*16+5*4 -> 138.4 | I9: =5*24 -> 120
A10: 32GB DDR3 LR-DIMM (4Gb, QRx4) | B10: =14.9*B$5 -> 14.9 | C10: =14.9*C$5 -> 29.8 | D10: 59.6 | E10: 119.2 | F10: =14.9*4 +11.8*8 -> 154 | G10: =11.8*16 -> 188.8 | H10: =11.8*16+8.2*4 -> 221.6 | I10: =8.2*24 -> 196.8
A11: 32GB DDR3 DIMM (4Gb, QRx4) | B11: =11.2*B$5 -> 11.2 | C11: =11.2*C$5 -> 22.4 | D11: 44.8 | E11: 89.6 | F11: =11.2*4 +9.6*8 -> 121.6 | G11: =9.6*16 -> 153.6 | H11: na | I11: na | J11: *3DPC only supported by LR-DIMMs
A12: 16GB DDR3 DIMM (4Gb, QRx8) | B12: =5.7*B$5 -> 5.7 | C12: =5.7*C$5 -> 11.4 | D12: 22.8 | E12: 45.6 | F12: =5.7*4 +5.7*8 -> 68.4 | G12: =5.7*16 -> 91.2 | H12: na | I12: na | J12: *3DPC only supported by LR-DIMMs
A13: User Definable | J13: <-- Define Custom Numbers Here
A14: User Definable | J14: <-- Define Custom Numbers Here
A15: User Definable | J15: <-- Define Custom Numbers Here
A16: User Definable | J16: <-- Define Custom Numbers Here
A17: User Definable | J17: <-- Define Custom Numbers Here
A18: User Definable | J18: <-- Define Custom Numbers Here
A22: Note:
A23: DIMM power will vary depending on the # of DIMMs & the actual stress/bandwidth used.
A24: DIMMs are assumed to be evenly distributed across available channels on a 4 channel motherboard.
A25: Numbers assume fan control set to performance mode
A28: 0
A29: 1
A30: 2
A31: 4
A32: 8
A33: 12
A34: 16
A35: 20
A36: 24
A37: 28
A38: 32

Sheet PCI
A1: PCI Add in Cards | B1: Amps of +3.3V | C1: Amps of +5V | D1: Amps of +12V | E1: Amps of 3.3V Stby | F1: Amps of 5V Stby | G1: Watts
A2: Slot Empty
A3: PCI-X (5V) Typical | C3: 2 | G3: =B3*3.3+C3*5+D3*12+E3*3.3+F3*5 -> 10
A4: PCIe (3V) Typical | B4: 3 | G4: 9.9
A5: PCIe (3.3V / 12V) Typical | B5: 2 | D5: 0.25 | G5: 9.6
A6: PCIe (3.3V / 12V) High | B6: 2 | D6: 0.7 | G6: 15
A7: RMS25PB080 (PCIe ROC) | B7: 0.86 | D7: 0.55 | E7: 0.2 | G7: =B7*3.3+C7*5+D7*12+E7*3.3 -> 10.098
A8: RES2SV240 (24-port Expander) | D8: 0.97 | G8: =B8*3.3+C8*5+D8*12+E8*3.3 -> 11.64
A9: User Definable | G9: =B9*3.3+C9*5+D9*12+E9*3.3+F9*5 -> 0 | H9: <-- Define Custom Card Here
A10: User Definable | G10: 0 | H10: <-- Define Custom Card Here
A11: User Definable | G11: 0 | H11: <-- Define Custom Card Here
A12: User Definable | G12: 0 | H12: <-- Define Custom Card Here
A13: User Definable | G13: 0 | H13: <-- Define Custom Card Here
A14: User Definable | G14: 0 | H14: <-- Define Custom Card Here
A15: User Definable | G15: 0 | H15: <-- Define Custom Card Here
A16: User Definable | G16: 0 | H16: <-- Define Custom Card Here
A17: User Definable | G17: 0 | H17: <-- Define Custom Card Here
A19: SAS ROC/IOC
A20: Slot Empty
A21: RMS25CB080 (Mezz ROC) | B21: 0.86 | D21: 0.55 | E21: 0.2 | G21: =B21*3.3+C21*5+D21*12+E21*3.3+F21*5 -> 10.098
A22: RMT3CB080 (Imezz OM) | B22: 0.86 | D22: 0.55 | E22: 0.2 | G22: =B22*3.3+C22*5+D22*12+E22*3.3+F22*5 -> 10.098
A23: User Definable | G23: 0 | H23: <-- Define Custom Card Here
A24: User Definable | G24: 0 | H24: <-- Define Custom Card Here
A26: IO Module
A27: Slot Empty
A28: AXX10GBNIAIOM | B28: 1.457 | D28: 0.57 | E28: 0.002 | G28: =B28*3.3+C28*5+D28*12+E28*3.3+F28*5 -> 11.6547
A29: AXX10GBTWLIOM | D29: 1.21 | E29: 0.019 | F29: 0.03 | G29: 14.7327
A30: AXX4P1GBPWLIOM | D30: 0.27 | E30: 0.35 | G30: 4.395
A31: AXX1FDRIBIOM | B31: 0.77 | D31: 0.46 | E31: 0.002 | G31: 8.0676
A32: AXX2FDRIBIOM | B32: 1.23 | D32: 0.46 | E32: 0.002 | G32: =B32*3.3+C32*5+D32*12+E32*3.3+F32*5 -> 9.5856
A33: AXXQAAIOMOD | B33: 0.43 | D33: 1.25 | E33: 0.002 | G33: 16.4256
A34: User Definable | G34: 0 | H34: <-- Define Custom Card Here
A35: User Definable | G35: 0 | H35: <-- Define Custom Card Here
A37: RMM4
A38: Slot Empty
A39: AXXRMM4R | E39: =0.498+0.066 -> 0.564 | G39: =B39*3.3+C39*5+D39*12+E39*3.3+F39*5 -> 1.8612
A40: AXXRMM4LITE | E40: 0.066 | G40: 0.2178
A41: User Definable | G41: 0 | H41: <-- Define Custom Card Here
A42: User Definable | G42: 0 | H42: <-- Define Custom Card Here
A44: eUSB
A45: Slot Empty
A46: Generic eUSB | E46: 0.08 | G46: =B46*3.3+C46*5+D46*12+E46*3.3+F46*5 -> 0.264
A47: User Definable | G47: 0 | H47: <-- Define Custom Card Here
A48: User Definable | G48: 0 | H48: <-- Define Custom Card Here

Sheet HardDrive
A1: Hard Drives | B1: Amps of +3.3V | C1: Amps of +5V | D1: Amps of +12V | E1: Watts
A2: Empty
A3: 3.5" SATA Typical Power (12W) | C3: 0.5 | D3: 0.8 | E3: =B3*3.3+C3*5+D3*12 -> 12.1
A4: 3.5" SAS Typical Power (15W) | C4: 0.8 | D4: 0.92 | E4: =B4*3.3+C4*5+D4*12 -> 15.04
A5: 2.5" SATA Typical Power (5W) | C5: 1 | D5: 0 | E5: 5
A6: 2.5" SAS Typical Power (9W) | C6: 0.81 | D6: 0.41 | E6: 8.97
A7: 3.5" Seagate ST33000650SS Constellation ES.2 | C7: 0.74 | D7: 0.49 | E7: 9.58 | G7: <-- Define Custom Device Here
A8: 3.5" SAS Seagate ST3600057SS Cheetah 15K.7 | C8: 0.45 | D8: 1.17 | E8: 16.29 | G8: <-- Define Custom Device Here
A9: 2.5" SAS Seagate ST91000640SS Constellation.2 | C9: 1 | D9: 0.17 | E9: 7.04 | G9: <-- Define Custom Device Here
A10: 2.5" SAS Seagate ST9146852SS Savvio 15K.2 | C10: 0.43 | D10: 0.4 | E10: 6.95 | G10: <-- Define Custom Device Here
A11: 2.5" SAS Intel X25-M 64GB SSDSA2SE064G1 | C11: 0.52 | E11: 2.6 | G11: <-- Define Custom Device Here
A12: Micron P300 200MB MTFDDAC200SAL-1N1 | C12: 0.7 | E12: 3.5 | G12: <-- Define Custom Device Here
A13: User Definable | E13: 0 | G13: <-- Define Custom Device Here
A14: User Definable | E14: 0 | G14: <-- Define Custom Device Here
A15: User Definable | E15: 0 | G15: <-- Define Custom Device Here
A16: User Definable | E16: 0 | G16: <-- Define Custom Device Here
A18: HSBP | B18: Amps of +3.3V | C18: Amps of +5V | D18: Amps of +12V | E18: Watts | F18: # of HDD
A19: Empty
A20: 1U 4x3.5" HSBP | D20: 0.087 | E20: =B20*3.3+C20*5+D20*12 -> 1.044 | F20: 4
A21: 1U 8x2.5" HSBP RPT | D21: =0.117+0.061 -> 0.178 | E21: 2.136 | F21: 8
A22: 2U 8x3.5" HSBP RPT | D22: =0.117+0.061 -> 0.178 | E22: 2.136 | F22: 8
A23: 2U 8x2.5" HSBP | D23: 0.117 | E23: 1.404 | F23: 8
A24: 2U 8x2.5" HSBP Dual channel | D24: 0.122 | E24: 1.464 | F24: 8
A25: 2U 12x3.5" HSBP RPT | D25: =0.19+0.092 -> 0.282 | E25: 3.384 | F25: 12
A26: User Definable | E26: 0 | G26: <-- Define Custom Device Here
A27: User Definable | E27: 0 | G27: <-- Define Custom Device Here
A28: User Definable | E28: 0 | G28: <-- Define Custom Device Here
A29: User Definable | E29: 0 | G29: <-- Define Custom Device Here
A30: User Definable | E30: 0 | G30: <-- Define Custom Device Here
A31: User Definable | E31: 0 | G31: <-- Define Custom Device Here

Sheet Peripherals
A1: Misc Peripherals | B1: Amps of +3.3V | C1: Amps of +5V | D1: Amps of +12V | E1: Amps of 3VSB | F1: Watts
A2: Slim-Line Devices
A3: Empty
A4: AXXSATADVDROM | C4: 0.7 | F4: =B4*3.3+C4*5+D4*12++E4*3.3 -> 3.5
A5: AXXSATADVDRWROM | C5: 0.8 | F5: =B5*3.3+C5*5+D5*12++E5*3.3 -> 4
A6: User Definable | F6: 0 | G6: <-- Define Custom Peripherals Here
A7: User Definable | F7: 0 | G7: <-- Define Custom Peripherals Here
A8: User Definable | F8: 0 | G8: <-- Define Custom Peripherals Here
A9: User Definable | F9: 0 | G9: <-- Define Custom Peripherals Here
A11: SSD Drives
A12: Empty
A13: Intel 320 600GB SSDSA2CW600G3xx | C13: 0.15 | F13: =B13*3.3+C13*5+D13*12++E13*3.3 -> 0.75
A14: Intel X25-M 64GB SSDSA2SE064G1 | C14: =2.6/5 -> 0.52 | F14: 2.6
A15: Micron P300 200MB MTFDDAC200SAL-1N1 | C15: =3.5/5 -> 0.7 | F15: 3.5 | G15: <-- Define Custom Peripherals Here
A16: User Definable | F16: 0 | G16: <-- Define Custom Peripherals Here
A17: User Definable | F17: 0 | G17: <-- Define Custom Peripherals Here
A18: User Definable | F18: 0 | G18: <-- Define Custom Peripherals Here
A20: Midplane SAS Expanders
A21: Empty
A22: RES2CV360 (36 port) | D22: 1.02 | F22: =B22*3.3+C22*5+D22*12++E22*3.3 -> 12.24
A23: RES2CV240 (24 port) | D23: 0.97 | F23: 11.64
A24: User Definable | F24: 0 | G24: <-- Define Custom Peripherals Here
A25: User Definable | F25: 0 | G25: <-- Define Custom Peripherals Here
A26: User Definable | F26: 0 | G26: <-- Define Custom Peripherals Here
A27: User Definable | F27: 0 | G27: <-- Define Custom Peripherals Here

Sheet Revision
A1: =MAX(A4:A27) -> 2013-08-27 | B1: =MAX(B4:B27) -> 2.4 | D1: <=== Linked to Summary Tab.
A3: Date | B3: Rev | C3: Notes | D3: Init
A4: 2011-12-22 | B4: 0.5 | C4: Initial Draft for review | D4: dls
A5: 2011-12-23 | B5: 1 | C5: Initial Release | D5: dls
A6: 2012-03-27 | B6: 2 | C6: Added Thermal Configuraiton data | D6: dls
A7: 2012-04-11 | B7: 2.1 | C7: Changes some labeleing and formatting | D7: dls
A8: 2012-09-10 | B8: 2.2 | C8: Updated Config Tab & adjusted CLST value | D8: dls
A9: 2012-11-12 | B9: 2.3 | C9: Corrected formatting errors and typos | D9: dls
A10: 2013-08-27 | B10: 2.4 | C10: Added IVB CPU support | D10: mj
